bitfinex/quotes_BTCUSD_20250109
["timestamp","ask_amount","ask_price","bid_price","bid_amount"]
[1736461970050,0.10429976,92432.0,92418.0,0.216408]
[1736461971077,0.02939523,92433.0,92417.0,0.0811]
[1736461971288,0.02939523,92433.0,92419.0,0.0818]
[1736461971489,0.00049205,92450.0,92430.0,0.216379]
[1736461971755,0.12680546,92449.0,92431.0,0.216377]
[1736461971936,0.12680546,92449.0,92432.0,0.216375]
[1736461972110,0.15,92448.0,92432.0,0.216375]
[1736461972322,0.00049205,92450.0,92435.0,0.0785]
[1736461972532,0.00049205,92450.0,92447.0,0.0785]
[1736461972736,0.00049205,92450.0,92449.0,0.0482]
[1736461972942,0.00049205,92450.0,92449.0,0.23208127]
[1736461973090,0.13504143,92490.0,92449.0,0.23099976]
[1736461973308,0.10429976,92489.0,92475.0,0.1267]
[1736461973518,0.21622,92499.0,92476.0,0.216272]
[1736461973739,0.15,92497.0,92477.0,0.216269]
[1736461973952,0.02971742,92499.0,92477.0,0.10429976]
[1736461974157,0.13504143,92510.0,92478.0,0.10429976]
[1736461974366,0.1,92517.0,92490.0,0.432474]
[1736461974367,0.10429976,92509.0,92490.0,0.432474]
[1736461974593,0.13504143,92520.0,92478.0,0.10429976]
[1736461974804,0.10429976,92513.0,92480.0,0.13504143]
[1736461975030,0.216142,92532.0,92508.0,0.216196]
[1736461975237,0.13504143,92530.0,92508.0,0.216196]
[1736461975453,0.13504143,92530.0,92482.0,0.1267]
[1736461975454,0.00824,92537.0,92513.0,0.342885]
[1736461975658,0.02942631,92519.0,92513.0,0.342885]
[1736461975906,0.21679203,92551.0,92513.0,0.3987925]
[1736461976121,0.216098,92551.0,92513.0,0.50309226]
[1736461976343,8.52e-05,92543.0,92513.0,0.50320963]
[1736461976558,8.52e-05,92543.0,92513.0,0.44730213]
[1736461977400,8.52e-05,92543.0,92513.0,0.45130213]
[1736461977603,0.02904282,92535.0,92513.0,0.45130213]
[1736461977819,8.52e-05,92543.0,92513.0,0.44730213]
[1736461978060,0.0010851,92514.0,92513.0,0.45230213]
[1736461978265,8.51e-05,92514.0,92513.0,0.45230213]
[1736461978483,8.52e-05,92543.0,92533.0,0.216138]
[1736461978682,8.52e-05,92543.0,92530.0,0.216143]
[1736461979187,0.001,92514.0,92513.0,0.23611713]
[1736461979403,8.52e-05,92543.0,92513.0,0.33611713]
[1736461979605,8.52e-05,92543.0,92514.0,0.1053804]
[1736461979824,8.52e-05,92543.0,92532.0,0.216139]
[1736461980390,8.52e-05,92543.0,92532.0,0.432278]
[1736461980592,8.52e-05,92543.0,92539.0,0.216122]
[1736461981008,8.52e-05,92543.0,92541.0,0.21612]
[1736461981209,8.52e-05,92543.0,92542.0,0.0785]
[1736461981419,8.52e-05,92543.0,92542.0,0.18388024]
[1736461982106,8.51e-05,92552.0,92551.0,0.216097]
[1736461982322,0.00057745,92552.0,92551.0,0.10429976]
[1736461982745,0.00057745,92552.0,92551.0,0.10538003]
[1736461982953,0.00057745,92552.0,92551.0,0.13752824]
[1736461983171,8.52e-05,92570.0,92562.0,0.21607]
[1736461983797,8.52e-05,92570.0,92552.0,0.339094]
[1736461984017,8.52e-05,92570.0,92552.0,0.33009398]
[1736461984674,8.52e-05,92570.0,92553.0,0.216092]
[1736461984889,0.02951802,92579.0,92552.0,0.11399998]
[1736461985103,0.0245538,92578.0,92562.0,0.003]
[1736461985614,0.216037,92577.0,92562.0,0.003]
[1736461985813,0.10429976,92577.0,92562.0,0.003]
[1736461986021,0.216054,92570.0,92562.0,0.003]
[1736461986220,0.216054,92570.0,92552.0,0.11399998]
[1736461986420,0.216054,92570.0,92553.0,0.001]
[1736461986696,0.01670134,92569.0,92553.0,0.001]
[1736461986906,0.216057,92568.0,92553.0,0.001]
[1736461987079,0.01670134,92569.0,92552.0,0.11399998]
[1736461987080,0.10429976,92567.0,92552.0,0.03679998]
[1736461987292,0.216064,92566.0,92552.0,0.001]
[1736461987493,0.216066,92564.0,92551.0,0.00011737]
[1736461987896,0.432133,92564.0,92551.0,0.00011737]
[1736461988097,0.216081,92558.0,92551.0,0.00011737]
[1736461988344,0.10429976,92563.0,92551.0,0.00011737]
[1736461988345,0.216083,92557.0,92551.0,0.00011737]
[1736461988747,0.10429976,92556.0,92551.0,0.00011737]
[1736461988917,0.23278834,92555.0,92551.0,0.00011737]
[1736461989118,0.2161,92550.0,92536.0,0.03761735]
[1736461989322,0.32040076,92549.0,92536.0,0.00049235]
[1736461989486,0.10429976,92549.0,92536.0,0.00049235]
[1736461989895,0.21609,92554.0,92536.0,0.00049235]
[1736461990108,0.2406438,92554.0,92536.0,0.00049235]
[1736461990308,0.216104,92548.0,92536.0,0.00049235]
[1736461990545,0.216104,92548.0,92536.0,0.00249235]
[1736461990968,0.216092,92553.0,92536.0,0.00049235]
[1736461991172,0.0245538,92554.0,92536.0,0.00249235]
[1736461991345,0.216118,92542.0,92536.0,0.00649235]
[1736461992158,0.216109,92546.0,92536.0,0.00249235]
[1736461992580,0.432218,92546.0,92536.0,0.00249235]
[1736461992999,0.216109,92546.0,92536.0,0.00249235]
[1736461993209,0.216109,92546.0,92536.0,0.00049235]
[1736461993424,0.0245538,92545.0,92536.0,0.00049235]
[1736461994064,0.30910565,92552.0,92520.0,0.25415933]
[1736461994302,0.216127,92539.0,92520.0,0.0465]
[1736461994718,0.216127,92538.0,92520.0,0.0465]
[1736461995203,0.215927,92538.0,92520.0,0.0465]
[1736461996375,0.216151,92528.0,92520.0,0.0465]
[1736461996574,0.216142,92532.0,92520.0,0.0465]
[1736461996770,0.216142,92532.0,92520.0,0.0485]
[1736461997001,0.006,92539.0,92520.0,0.0485]
[1736461997002,0.156,92539.0,92520.0,0.0485]
[1736461997207,0.15,92537.0,92496.0,0.0788]
[1736461997408,0.216165,92522.0,92502.0,0.10429976]
[1736461997582,0.216165,92522.0,92503.0,0.216209]
[1736461998355,0.216165,92522.0,92502.0,0.216211]
[1736461998787,0.216165,92522.0,92502.0,0.218211]
[1736461999164,0.216165,92522.0,92502.0,0.20921098]
[1736461999366,0.15,92532.0,92502.0,0.002]
[1736461999506,0.15,92530.0,92502.0,0.002]
[1736461999708,0.216169,92520.0,92502.0,0.002]
[1736462000071,0.216174,92518.0,92503.0,0.001]
[1736462000270,0.216174,92518.0,92503.0,0.003]
[1736462000684,0.216174,92518.0,92501.0,0.216381]
[1736462000907,0.216174,92518.0,92502.0,0.004]
[1736462001109,0.216187,92513.0,92502.0,0.004]
[1736462001347,0.216187,92513.0,92501.0,0.00017]
[1736462001561,0.216187,92513.0,92503.0,0.003]
[1736462001984,0.216187,92513.0,92501.0,0.00017]
[1736462002166,0.216187,92513.0,92503.0,0.001]
[1736462003178,0.216174,92518.0,92503.0,0.001]
[1736462003397,0.02938825,92513.0,92502.0,0.003]
[1736462003604,0.216174,92518.0,92501.0,0.21653036]
[1736462003813,0.001,92513.0,92503.0,0.007]
[1736462004019,0.001,92513.0,92501.0,0.21453034]
[1736462004218,0.216174,92518.0,92501.0,0.21453034]
[1736462004434,0.216174,92518.0,92503.0,0.003]
[1736462004866,0.216174,92518.0,92502.0,0.002]
[1736462005075,0.24533501,92518.0,92503.0,0.001]
[1736462005687,0.02916101,92518.0,92503.0,0.001]
[1736462006092,0.216164,92523.0,92508.0,0.216195]
[1736462006331,0.02856105,92529.0,92509.0,0.10429976]
[1736462006541,0.02856105,92529.0,92524.0,0.216159]
[1736462006718,0.216121,92541.0,92525.0,0.216157]
[1736462007169,0.216121,92541.0,92524.0,0.216159]
[1736462007170,0.216107,92547.0,92529.0,0.216146]
[1736462007689,0.432214,92547.0,92529.0,0.216146]
[1736462008127,0.004,92541.0,92529.0,0.216146]
[1736462008340,0.004,92541.0,92526.0,0.216154]
[1736462008554,0.216117,92543.0,92529.0,0.00014747]
[1736462008736,0.002,92547.0,92532.0,0.0811]
[1736462008886,0.002,92547.0,92534.0,0.216134]
[1736462009088,0.002,92547.0,92534.0,0.20713398]
[1736462009293,0.002,92547.0,92538.0,0.216126]
[1736462009629,0.002,92547.0,92535.0,0.02883815]
[1736462009832,0.006,92547.0,92534.0,0.20713398]
[1736462010221,0.001,92541.0,92534.0,0.42326998]
[1736462010652,0.02948586,92550.0,92535.0,0.216134]
[1736462010818,0.001,92547.0,92536.0,0.0459]
[1736462011028,0.006,92547.0,92537.0,0.216129]
[1736462011233,0.001,92547.0,92538.0,0.10429976]
[1736462011414,0.216074,92561.0,92538.0,0.10429976]
[1736462011612,0.216078,92559.0,92544.0,0.216111]
[1736462012530,0.0261475,92561.0,92549.0,0.216101]
[1736462012707,0.35095563,92570.0,92538.0,0.10429976]
[1736462012908,0.216066,92564.0,92546.0,0.216108]
[1736462013586,0.216078,92560.0,92546.0,0.216108]
[1736462014022,0.005,92547.0,92546.0,0.20710798]
[1736462014350,0.216078,92560.0,92546.0,0.20710798]
[1736462014550,0.216078,92560.0,92546.0,0.20810798]
[1736462014783,0.217078,92560.0,92546.0,0.20810798]
[1736462014987,0.217078,92560.0,92546.0,0.20710798]
[1736462015387,0.217078,92560.0,92546.0,0.20910798]
[1736462015588,0.217078,92560.0,92546.0,0.20710798]
[1736462016241,0.15967481,92564.0,92546.0,0.20710798]
[1736462016437,0.45525539,92570.0,92546.0,0.20710798]
[1736462016636,0.45525539,92570.0,92554.0,0.216089]
[1736462016637,0.216055,92569.0,92554.0,0.216089]
[1736462017013,0.216053,92570.0,92555.0,0.216087]
[1736462017443,0.005,92560.0,92555.0,0.216087]
[1736462017644,0.002,92564.0,92555.0,0.216087]
[1736462017838,0.216053,92570.0,92555.0,0.216087]
[1736462018050,0.216057,92568.0,92555.0,0.216087]
[1736462018708,0.003,92560.0,92555.0,0.216087]
[1736462018910,0.216057,92568.0,92555.0,0.216087]
[1736462019182,0.216057,92568.0,92555.0,0.20708698]
[1736462019435,0.006,92568.0,92557.0,0.216083]
[1736462019903,0.008,92568.0,92557.0,0.216083]
[1736462020421,0.216059,92567.0,92556.0,0.0808]
[1736462021257,0.25,92560.0,92556.0,0.0808]
[1736462021970,0.253,92560.0,92556.0,0.0808]
[1736462022184,0.25,92560.0,92556.0,0.0808]
[1736462022670,0.252,92560.0,92556.0,0.0808]
[1736462024363,0.252,92560.0,92557.0,0.42316498]
[1736462024623,0.25070362,92560.0,92557.0,0.42316498]
[1736462024900,0.25070362,92560.0,92557.0,0.20708198]
[1736462025559,0.24870362,92560.0,92557.0,0.20708198]
[1736462025780,0.24870362,92560.0,92557.0,0.20908198]
[1736462026007,0.27488646,92560.0,92557.0,0.20708198]
[1736462026447,0.27488646,92560.0,92557.0,0.20908198]
[1736462026654,0.27488646,92560.0,92557.0,0.21008198]
[1736462027989,0.02618284,92560.0,92557.0,0.21008198]
[1736462028486,0.00049282,92568.0,92557.0,0.21008198]
[1736462029253,0.00049282,92568.0,92557.0,0.20108196]
[1736462029478,0.00049282,92568.0,92557.0,0.20008196]
[1736462029759,0.216069,92563.0,92552.0,0.216094]
[1736462030012,0.13490263,92562.0,92548.0,0.216102]
[1736462030541,0.216073,92561.0,92548.0,0.216102]
[1736462031472,0.216073,92561.0,92540.0,0.216121]
[1736462031473,0.13490263,92562.0,92540.0,0.216121]
[1736462031709,0.13490263,92550.0,92527.0,0.0766]
[1736462031970,0.216111,92545.0,92527.0,0.0766]
[1736462032201,0.13490263,92540.0,92527.0,0.0766]
[1736462032421,0.13490263,92540.0,92527.0,0.292751]
[1736462032756,0.216127,92538.0,92524.0,0.0465]
[1736462032991,0.13490263,92534.0,92527.0,0.001]
[1736462033239,0.216144,92531.0,92512.0,0.0465]
[1736462033499,0.216156,92526.0,92512.0,0.00014747]
[1736462033739,0.216171,92520.0,92512.0,0.00014747]
[1736462033990,0.13490263,92522.0,92512.0,0.00014747]
[1736462034192,0.13490263,92522.0,92509.0,0.06774745]
[1736462034439,0.216167,92521.0,92509.0,0.06789495]
[1736462034623,0.216167,92521.0,92509.0,0.0001475]
[1736462035722,0.216167,92521.0,92512.0,0.001]
[1736462036210,0.13490263,92522.0,92512.0,0.001]
[1736462036382,0.13490263,92522.0,92509.0,0.0011475]
[1736462036631,0.216167,92521.0,92509.0,0.0001475]
[1736462037067,0.13490263,92522.0,92510.0,0.216192]
[1736462037246,0.13490263,92520.0,92509.0,0.0001475]
[1736462037500,0.216172,92519.0,92509.0,0.0001475]
[1736462037666,0.216181,92515.0,92509.0,0.0001475]
[1736462038219,0.216191,92511.0,92509.0,0.0001475]
[1736462038427,0.32049076,92511.0,92509.0,0.0001475]
[1736462038607,0.10429976,92510.0,92509.0,0.0001475]
[1736462038962,0.216195,92509.0,92487.0,0.03871768]
[1736462039162,0.13490263,92500.0,92488.0,0.216244]
[1736462040225,0.13490263,92500.0,92487.0,0.0001475]
[1736462040226,0.216218,92499.0,92487.0,0.0001475]
[1736462040427,0.13490263,92500.0,92487.0,0.0001475]
[1736462040842,0.13490263,92500.0,92488.0,0.216244]
[1736462041055,0.216218,92499.0,92487.0,0.0001475]
[1736462041259,0.21622,92498.0,92487.0,0.0001475]
[1736462042702,0.001,92498.0,92487.0,0.0001475]
[1736462042922,0.216232,92494.0,92487.0,0.0001475]
[1736462043296,0.001,92498.0,92487.0,0.0001475]
[1736462043297,0.216243,92489.0,92487.0,0.0001475]
[1736462043731,0.10429976,92488.0,92487.0,0.0001475]
[1736462043938,0.12729976,92488.0,92487.0,0.0001475]
[1736462044141,0.21626,92482.0,92464.0,0.28498748]
[1736462044351,0.13490263,92480.0,92468.0,0.216288]
[1736462044558,0.13490263,92480.0,92464.0,0.28513512]
[1736462044774,0.13490263,92480.0,92465.0,0.432594]
[1736462044976,0.0032799,92479.0,92469.0,0.216286]
[1736462045416,0.21626,92482.0,92469.0,0.216286]
[1736462045417,0.21726,92482.0,92469.0,0.216286]
[1736462045628,0.002,92480.0,92469.0,0.216286]
[1736462045859,0.216248,92486.0,92469.0,0.216286]
[1736462046072,0.00032748,92480.0,92469.0,0.216286]
[1736462046250,0.001,92479.0,92469.0,0.216286]
[1736462046470,0.1,92512.0,92470.0,0.23309976]
[1736462046672,0.216122,92541.0,92503.0,0.216208]
[1736462046673,0.0817,92522.0,92503.0,0.216208]
[1736462046879,0.13490263,92520.0,92503.0,0.216208]
[1736462047084,0.216174,92518.0,92503.0,0.216208]
[1736462047319,0.10429976,92517.0,92503.0,0.216208]
[1736462047505,0.0817,92522.0,92482.0,0.216257]
[1736462047506,0.02254102,92541.0,92525.0,0.216157]
[1736462047708,0.32042176,92540.0,92519.0,0.0821]
[1736462047910,0.173,92537.0,92523.0,0.216162]
[1736462048115,0.1580621,92550.0,92519.0,0.08224764]
[1736462048319,0.216112,92545.0,92530.0,0.216145]
[1736462048533,0.15,92547.0,92519.0,0.08224764]
[1736462048754,0.02315947,92550.0,92522.0,0.216164]
[1736462048971,0.02315947,92550.0,92540.0,0.216121]
[1736462049115,0.15,92554.0,92540.0,0.20712098]
[1736462049529,0.216089,92555.0,92540.0,0.20712098]
[1736462049730,0.004,92547.0,92540.0,0.20712098]
[1736462050145,0.004,92547.0,92537.0,0.216129]
[1736462050760,0.005,92547.0,92537.0,0.216129]
[1736462051182,0.15,92550.0,92537.0,0.216129]
[1736462051403,0.15,92550.0,92540.0,0.001]
[1736462051613,0.001,92547.0,92540.0,0.001]
[1736462051765,0.001,92547.0,92537.0,0.216129]
[1736462051965,0.15,92550.0,92537.0,0.216129]
[1736462052162,0.004,92547.0,92537.0,0.216129]
[1736462052606,0.152,92550.0,92537.0,0.216129]
[1736462052871,0.004,92547.0,92537.0,0.432258]
[1736462053214,0.004,92547.0,92537.0,0.216129]
[1736462053834,0.004,92547.0,92534.0,0.216134]
[1736462054034,0.15,92550.0,92534.0,0.20713398]
[1736462054242,0.001,92547.0,92534.0,0.20713398]
[1736462054479,0.005,92547.0,92534.0,0.20713398]
[1736462054734,0.15,92550.0,92534.0,0.20713398]
[1736462055205,0.15,92545.0,92530.0,0.216144]
[1736462055387,0.15,92545.0,92525.0,0.216157]
[1736462055796,0.216124,92540.0,92525.0,0.216157]
[1736462056641,0.216124,92540.0,92521.0,0.262865]
[1736462056642,0.432248,92540.0,92521.0,0.262865]
[1736462056853,0.216142,92532.0,92521.0,0.0467]
[1736462057056,0.27729976,92539.0,92519.0,0.00014764]
[1736462057261,0.216155,92526.0,92519.0,0.00014764]
[1736462057636,0.216166,92522.0,92519.0,0.00014764]
[1736462057873,0.23844661,92526.0,92519.0,0.00014764]
[1736462058068,0.02229161,92526.0,92521.0,0.001]
[1736462058312,0.34345776,92525.0,92521.0,0.001]
[1736462058522,0.34345776,92525.0,92519.0,0.00014764]
[1736462058722,0.216169,92520.0,92519.0,0.00014764]
[1736462059118,0.216181,92515.0,92502.0,0.20735662]
[1736462059350,0.216181,92515.0,92502.0,0.0001477]
[1736462059961,0.13490263,92520.0,92502.0,0.0001477]
[1736462060173,0.216189,92512.0,92502.0,0.0001477]
[1736462060703,0.06453082,92520.0,92502.0,0.0001477]
[1736462060908,0.023,92516.0,92502.0,0.0001477]
[1736462061114,0.023,92510.0,92502.0,0.0001477]
[1736462061315,0.173,92504.0,92502.0,0.0001477]
[1736462061523,0.50174876,92503.0,92502.0,0.0011477]
[1736462061928,0.50174876,92503.0,92502.0,0.0001477]
[1736462063811,0.50574876,92503.0,92502.0,0.0001477]
[1736462064038,0.173,92502.0,92476.0,0.07224768]
[1736462064237,0.216248,92487.0,92476.0,0.07239546]
[1736462066502,0.02301763,92487.0,92476.0,0.07239546]
[1736462066912,0.35114263,92490.0,92476.0,0.07239546]
[1736462067248,0.005,92487.0,92476.0,0.07239546]
[1736462067626,0.002,92487.0,92476.0,0.07239546]
[1736462067847,0.007,92487.0,92476.0,0.07239546]
[1736462068046,0.005,92487.0,92476.0,0.07239546]
[1736462068247,0.37386824,92490.0,92476.0,0.07239546]
[1736462068550,0.005,92487.0,92476.0,0.07239546]
[1736462068779,0.37586824,92490.0,92476.0,0.07239546]
[1736462068953,0.01670134,92489.0,92476.0,0.07239546]
[1736462069160,0.002,92487.0,92476.0,0.06339544]
[1736462070225,0.007,92487.0,92476.0,0.06339544]
[1736462070412,0.216248,92486.0,92476.0,0.06339544]
[1736462070859,0.216248,92486.0,92476.0,0.00014778]
[1736462071058,0.37586824,92490.0,92476.0,0.00014778]
[1736462071273,0.216244,92488.0,92476.0,0.00014778]
[1736462071465,0.005,92487.0,92476.0,0.00014778]
[1736462071766,0.15762824,92490.0,92476.0,0.00014778]
[1736462071984,0.004,92486.0,92476.0,0.00014778]
[1736462072385,0.006,92486.0,92476.0,0.00014778]
[1736462073617,0.004,92486.0,92476.0,0.00014778]
[1736462073963,0.216241,92489.0,92470.0,0.06874776]
[1736462074179,0.216241,92489.0,92471.0,0.216284]
[1736462074380,0.005,92487.0,92471.0,0.216284]
[1736462074610,0.216241,92489.0,92471.0,0.216284]
[1736462074803,0.002,92486.0,92470.0,0.0688957]
[1736462075008,0.006,92486.0,92470.0,0.0688957]
[1736462075234,0.004,92486.0,92470.0,0.0688957]
[1736462075437,0.216241,92489.0,92470.0,0.0688957]
[1736462075644,0.007,92487.0,92470.0,0.0688957]
[1736462075857,0.216248,92486.0,92470.0,0.0688957]
[1736462076705,0.216262,92481.0,92470.0,0.0688957]
[1736462076908,0.15,92488.0,92470.0,0.0688957]
[1736462077086,0.002,92486.0,92470.0,0.0688957]
[1736462077305,0.216251,92485.0,92470.0,0.0688957]
[1736462077446,0.002,92486.0,92470.0,0.0688957]
[1736462077667,0.005,92486.0,92470.0,0.0688957]
[1736462077891,0.001,92481.0,92470.0,0.0688957]
[1736462078280,0.005,92486.0,92470.0,0.0688957]
[1736462078479,0.15,92484.0,92470.0,0.0688957]
[1736462079100,0.15,92484.0,92470.0,0.05989568]
[1736462080282,0.151,92484.0,92470.0,0.05989568]
[1736462080476,0.13490263,92480.0,92470.0,0.05989568]
[1736462081435,0.15,92485.0,92470.0,0.05989568]
[1736462081650,0.002,92480.0,92470.0,0.05989568]
[1736462081858,0.001,92480.0,92471.0,0.10538118]
[1736462082077,0.002,92480.0,92478.0,0.216267]
[1736462082283,0.002,92480.0,92479.0,0.10429976]
[1736462082488,0.13490263,92510.0,92479.0,0.10429976]
[1736462082489,0.13490263,92510.0,92479.0,0.10538097]
[1736462082712,0.35107363,92520.0,92488.0,0.0486]
[1736462082921,0.35107363,92520.0,92497.0,0.03367234]
[1736462083157,0.216171,92520.0,92498.0,0.21622]
[1736462083770,0.21618,92516.0,92497.0,0.03367234]
[1736462084180,0.15,92515.0,92497.0,0.24089432]
[1736462084377,0.02262219,92520.0,92519.0,0.216171]
[1736462084602,0.02862219,92520.0,92517.0,0.216175]
[1736462084836,0.02262219,92520.0,92515.0,0.0468]
[1736462085067,0.005,92516.0,92515.0,0.0468]
[1736462085301,0.15,92530.0,92515.0,0.0468]
[1736462085302,0.15,92534.0,92515.0,0.0468]
[1736462085616,0.003,92520.0,92515.0,0.0468]
[1736462085835,0.003,92520.0,92517.0,0.216175]
[1736462087030,8.51e-05,92526.0,92517.0,0.216175]
[1736462087259,8.51e-05,92526.0,92518.0,0.05038243]
[1736462087430,8.51e-05,92526.0,92523.0,0.216161]
[1736462087637,8.51e-05,92526.0,92523.0,0.432323]
[1736462087838,8.51e-05,92526.0,92525.0,0.216157]
[1736462088048,8.51e-05,92526.0,92525.0,0.34512908]
[1736462089125,8.51e-05,92526.0,92525.0,0.336277]
[1736462090385,0.0010851,92526.0,92525.0,0.336277]
[1736462090572,8.51e-05,92526.0,92525.0,0.340277]
[1736462090783,0.0010851,92526.0,92525.0,0.340277]
[1736462091191,8.51e-05,92526.0,92525.0,0.340277]
[1736462091407,0.0010851,92526.0,92525.0,0.340277]
[1736462091579,0.0010851,92526.0,92525.0,0.4254079]
[1736462091790,8.51e-05,92526.0,92525.0,0.00414794]
[1736462091994,0.0010851,92526.0,92525.0,0.00414794]
[1736462092558,0.0010851,92526.0,92525.0,0.00014794]
[1736462092755,0.0010851,92526.0,92525.0,0.00314794]
[1736462093204,8.51e-05,92526.0,92525.0,0.00014794]
[1736462093631,0.0030851,92526.0,92525.0,0.00914794]
[1736462093809,0.0020851,92526.0,92525.0,0.00014794]
[1736462094031,0.216177,92517.0,92505.0,0.01582024]
[1736462094261,0.216177,92517.0,92505.0,0.01596819]
[1736462094463,0.216169,92520.0,92505.0,0.00014795]
[1736462094641,0.216186,92513.0,92505.0,0.01596819]
[1736462097207,0.24098132,92513.0,92505.0,0.01596819]
[1736462097411,0.24098132,92513.0,92505.0,0.01696819]
[1736462097634,0.02479532,92513.0,92505.0,0.23317119]
[1736462097852,8.51e-05,92526.0,92506.0,0.10429976]
[1736462098042,8.51e-05,92526.0,92525.0,0.09172024]
[1736462098248,8.51e-05,92526.0,92525.0,0.24520054]
[1736462098416,8.51e-05,92558.0,92553.0,0.216092]
[1736462099001,8.51e-05,92558.0,92551.0,0.216096]
[1736462099208,8.51e-05,92558.0,92552.0,0.124]
[1736462099838,0.00057856,92558.0,92555.0,0.216087]
[1736462103291,0.00157856,92558.0,92555.0,0.216087]
[1736462103935,0.00057856,92558.0,92555.0,0.216087]
[1736462104115,0.00057856,92558.0,92555.0,0.20708698]
[1736462104314,0.00257856,92558.0,92555.0,0.20708698]
[1736462104516,0.00057856,92558.0,92555.0,0.20708698]
[1736462104923,0.00057856,92558.0,92555.0,0.001]
[1736462106330,0.00057856,92558.0,92554.0,0.21609]
[1736462106691,0.00057856,92558.0,92555.0,0.001]
[1736462106871,0.00057856,92558.0,92554.0,0.21609]
[1736462107391,0.00057856,92558.0,92555.0,0.001]
[1736462107552,0.00057856,92558.0,92554.0,0.21609]
[1736462107756,0.00057856,92558.0,92554.0,0.43218]
[1736462107963,0.00057856,92558.0,92556.0,0.216085]
[1736462108672,0.00057856,92558.0,92557.0,0.10429976]
[1736462109081,0.00057856,92558.0,92556.0,0.216085]
[1736462110259,0.00057856,92558.0,92556.0,0.221085]
[1736462110478,0.00057856,92558.0,92556.0,0.216085]
[1736462110685,0.00057856,92558.0,92556.0,0.218085]
[1736462110881,0.00057856,92558.0,92556.0,0.223085]
[1736462111097,0.00057856,92558.0,92556.0,0.218085]
[1736462111461,0.00057856,92558.0,92556.0,0.223085]
[1736462113099,0.00057856,92558.0,92556.0,0.007]
[1736462113995,0.00057856,92558.0,92554.0,0.21408998]
[1736462114494,0.216063,92566.0,92551.0,0.216095]
[1736462114495,0.15,92569.0,92551.0,0.216095]
[1736462114711,0.216072,92562.0,92551.0,0.216095]
[1736462116500,0.216072,92562.0,92554.0,0.006]
[1736462116657,0.216072,92562.0,92554.0,0.002]
[1736462116852,0.216072,92562.0,92546.0,0.01582024]
[1736462116853,0.216081,92558.0,92542.0,0.216116]
[1736462117016,0.216089,92555.0,92542.0,0.216116]
[1736462117223,0.216089,92555.0,92537.0,0.216128]
[1736462117224,0.13490263,92552.0,92517.0,0.1264]
[1736462117431,0.15,92551.0,92518.0,0.10429976]
[1736462117638,0.15,92549.0,92528.0,0.21615]
[1736462117850,0.216123,92540.0,92528.0,0.21615]
[1736462118267,0.15,92537.0,92517.0,0.1264]
[1736462118480,0.216173,92519.0,92506.0,0.081]
[1736462118728,0.216173,92519.0,92504.0,0.216204]
[1736462118933,0.216173,92519.0,92508.0,0.216196]
[1736462119133,0.216171,92520.0,92515.0,0.00049346]
[1736462119571,0.21616,92524.0,92515.0,0.00049346]
[1736462119945,0.005,92519.0,92515.0,0.00049346]
[1736462120368,0.21617,92520.0,92515.0,0.00049346]
[1736462120607,0.22017,92520.0,92515.0,0.00049346]
[1736462120783,0.432348,92518.0,92515.0,0.00049346]
[1736462123291,0.433348,92518.0,92515.0,0.00049346]
[1736462123520,0.46161463,92518.0,92515.0,0.00049346]
[1736462124056,0.46161463,92518.0,92503.0,0.216209]
[1736462124258,0.46161463,92518.0,92503.0,0.21635695]
[1736462124465,0.216178,92516.0,92503.0,0.00014795]
[1736462125174,0.432356,92516.0,92503.0,0.00014795]
[1736462125406,0.216192,92511.0,92503.0,0.00014795]
[1736462126161,0.432384,92511.0,92503.0,0.00014795]
[1736462126362,0.216192,92511.0,92503.0,0.00014795]
[1736462127993,0.216206,92505.0,92503.0,0.00014795]
[1736462129076,0.432412,92505.0,92491.0,0.20738293]
[1736462129287,0.432412,92505.0,92491.0,0.20753113]
[1736462129486,0.434412,92505.0,92491.0,0.20753113]
[1736462129683,0.439412,92505.0,92491.0,0.20753113]
[1736462129890,0.223206,92505.0,92491.0,0.20753113]
[1736462130124,0.216206,92505.0,92491.0,0.20753113]
[1736462130323,0.223206,92505.0,92497.0,0.01582024]
[1736462130564,0.223206,92505.0,92491.0,0.20753113]
[1736462130772,0.218206,92505.0,92497.0,0.01582024]
[1736462131052,0.218206,92505.0,92491.0,0.20753113]
[1736462131214,0.218206,92505.0,92497.0,0.01582024]
[1736462131852,0.45539439,92510.0,92497.0,0.01582024]
[1736462132033,0.007,92505.0,92491.0,0.20753113]
[1736462132230,0.007,92505.0,92497.0,0.01582024]
[1736462132506,0.007,92505.0,92495.0,0.216227]
[1736462132507,0.002,92505.0,92495.0,0.216227]
[1736462132745,0.005,92505.0,92495.0,0.216227]
[1736462132925,0.007,92505.0,92497.0,0.01582024]
[1736462133181,0.002,92505.0,92495.0,0.216227]
[1736462133363,0.007,92505.0,92495.0,0.216227]
[1736462133567,0.216202,92506.0,92495.0,0.216227]
[1736462133775,0.002,92505.0,92497.0,0.01582024]
[1736462134092,0.007,92505.0,92497.0,0.00682022]
[1736462134845,0.007,92505.0,92495.0,0.216227]
[1736462135313,0.007,92505.0,92497.0,0.00682022]
[1736462135569,0.002,92505.0,92495.0,0.216227]
[1736462135765,0.007,92505.0,92495.0,0.216227]
[1736462136262,0.216195,92509.0,92497.0,0.00682022]
[1736462136516,0.005,92505.0,92495.0,0.216227]
[1736462136928,0.005,92505.0,92497.0,0.00682022]
[1736462137342,0.10429976,92508.0,92497.0,0.00682022]
[1736462137793,0.216199,92507.0,92495.0,0.216227]
[1736462138133,0.001,92505.0,92497.0,0.00682022]
[1736462138631,0.001,92505.0,92495.0,0.216227]
[1736462139078,0.001,92505.0,92495.0,0.20722698]
[1736462139818,0.005,92505.0,92495.0,0.20722698]
[1736462140018,0.221199,92507.0,92495.0,0.20722698]
[1736462140019,0.216199,92507.0,92497.0,0.00682022]
[1736462140434,0.218199,92507.0,92495.0,0.20722698]
[1736462140909,0.216199,92507.0,92495.0,0.20722698]
[1736462141118,0.10429976,92508.0,92495.0,0.20722698]
[1736462141351,0.001,92507.0,92495.0,0.20722698]